bitfinex/quotes_ETHUSD_20260302
["timestamp","ask_amount","ask_price","bid_price","bid_amount"]
[1772470652727,3.19449532,2063.6,2062.4,4.84849768]
[1772470653295,3.19449532,2063.6,2062.4,6.67258531]
[1772470653496,3.19449532,2063.6,2062.5,2.01143216]
[1772470653699,3.19449532,2063.6,2062.6,0.989]
[1772470653897,3.19449532,2063.6,2062.5,2.01143216]
[1772470654208,1.98302023,2063.5,2062.5,3.00043216]
[1772470654603,1.21159251,2063.4,2062.6,1.21206244]
[1772470656035,1.21159251,2063.4,2062.5,1.2130837]
[1772470656207,1.98302023,2063.3,2062.5,1.21311871]
[1772470656728,4.84637006,2063.5,2062.5,0.001]
[1772470657228,6.82939029,2063.5,2062.5,0.001]
[1772470657429,1.21141638,2063.7,2062.5,2.01143216]
[1772470658919,1.98302023,2063.6,2062.5,3.22351753]
[1772470659228,1.98302023,2063.6,2062.5,1.21310915]
[1772470660135,1.98302023,2063.6,2062.5,0.001]
[1772470660305,1.98302023,2063.4,2062.5,0.001]
[1772470660507,3.10602023,2063.3,2062.5,0.001]
[1772470660732,1.98302023,2063.2,2062.5,0.001]
[1772470660933,1.21182743,2063.0,2062.5,0.001]
[1772470661437,1.21175715,2063.2,2062.5,0.001]
[1772470661809,1.98302023,2063.1,2062.5,0.001]
[1772470662226,1.98302023,2063.0,2062.5,0.001]
[1772470662435,2.33575715,2063.2,2062.5,0.001]
[1772470662834,4.31877738,2063.2,2062.5,0.001]
[1772470663035,2.33575715,2063.2,2062.5,0.001]
[1772470663332,1.124,2063.2,2062.5,0.001]
[1772470663633,1.21173105,2063.2,2062.5,2.01143216]
[1772470664210,3.19441739,2063.8,2062.8,2.01043216]
[1772470664426,3.19441739,2063.8,2062.5,2.01143216]
[1772470664427,1.98302023,2063.7,2062.5,2.01143216]
[1772470664810,1.98302023,2063.7,2062.6,0.986]
[1772470665037,3.19449532,2063.6,2062.7,1.21200368]
[1772470665334,1.21147509,2063.6,2062.7,3.22243584]
[1772470665732,3.19449532,2063.6,2062.7,2.19700368]
[1772470666134,3.19449532,2063.6,2062.7,1.21300368]
[1772470666440,1.211458,2063.7,2062.8,2.01043216]
[1772470667110,1.211458,2063.7,2062.9,1.21188617]
[1772470667506,1.211458,2063.7,2062.9,2.19688617]
[1772470668531,1.211458,2063.7,2062.9,1.21188617]
[1772470669232,3.06682235,2063.7,2062.9,1.21188617]
[1772470669438,1.85536435,2063.6,2062.9,1.21188617]
[1772470669618,1.85536435,2063.5,2062.7,0.001]
[1772470669813,1.82408763,2063.6,2062.7,0.001]
[1772470669814,1.85536435,2063.3,2062.7,0.001]
[1772470670020,1.85536435,2063.2,2062.7,0.001]
[1772470670220,1.85536435,2063.2,2062.5,0.001]
[1772470671333,1.21176869,2063.1,2062.5,0.001]
[1772470671540,1.124,2063.0,2062.5,0.001]
[1772470671735,1.21176869,2063.1,2062.5,0.001]
[1772470673549,1.21162367,2063.4,2062.5,1.90950168]
[1772470673843,4.84595239,2063.6,2062.6,1.90850168]
[1772470674252,4.84595239,2063.6,2062.6,2.89250168]
[1772470674631,4.84595239,2063.6,2062.6,1.90850168]
[1772470674828,4.84595239,2063.6,2062.6,2.89250168]
[1772470675153,4.19183944,2063.7,2062.7,1.90850168]
[1772470675154,2.33645925,2063.7,2062.7,1.90850168]
[1772470675522,2.33645925,2063.7,2062.8,3.1204466]
[1772470675523,1.21145925,2063.7,2062.8,3.1204466]
[1772470677021,1.21145925,2063.7,2062.9,0.983]
[1772470677236,1.21145925,2063.7,2062.8,3.1204466]
[1772470677530,1.21145925,2063.7,2062.7,4.84777971]
[1772470677531,3.0668236,2063.7,2062.7,0.983]
[1772470677847,3.0668236,2063.7,2062.6,1.21206244]
[1772470678053,3.0668236,2063.7,2062.7,2.89150168]
[1772470678546,1.21145925,2063.7,2062.8,1.90850168]
[1772470679050,1.21138712,2063.8,2062.9,1.90850168]
[1772470679243,0.002,2063.9,2062.9,1.90850168]
[1772470679244,1.21332112,2063.9,2062.9,1.90850168]
[1772470679635,3.06868547,2063.9,2063.0,1.21182743]
[1772470680029,2.86583386,2063.8,2063.0,1.21182743]
[1772470680337,4.72119821,2063.8,2063.0,1.21182743]
[1772470680535,2.86583386,2063.7,2063.0,1.21182743]
[1772470680843,0.002,2063.9,2063.1,1.90850168]
[1772470681941,0.002,2063.9,2063.2,1.21170996]
[1772470682141,0.002,2063.9,2062.9,5.83030974]
[1772470682142,1.85536435,2063.7,2062.9,1.21188617]
[1772470682450,1.85536435,2063.7,2063.0,0.983]
[1772470682653,0.002,2063.9,2063.1,1.90850168]
[1772470682835,2.87349877,2063.8,2063.1,1.90850168]
[1772470683261,0.002,2063.5,2063.1,1.90850168]
[1772470683952,0.002,2063.5,2063.0,1.21280194]
[1772470684125,0.002,2063.5,2063.0,0.001]
[1772470684328,1.85736435,2063.5,2063.0,0.001]
[1772470684529,1.85536435,2063.3,2062.8,0.001]
[1772470684835,1.125,2063.5,2062.8,0.001]
[1772470684836,4.72706498,2063.2,2062.8,0.001]
[1772470685032,4.72706498,2063.1,2062.8,0.001]
[1772470685235,2.87170063,2063.0,2062.8,0.001]
[1772470685855,1.21159251,2063.4,2062.8,0.001]
[1772470686036,2.87059678,2063.3,2062.8,0.001]
[1772470687530,1.21159251,2063.4,2062.8,0.001]
[1772470687738,0.002,2063.5,2062.8,1.90950168]
[1772470688067,0.002,2063.5,2062.9,1.21188617]
[1772470688633,0.002,2063.5,2063.0,1.90850168]
[1772470688852,0.002,2063.5,2063.1,0.983]
[1772470689570,0.002,2063.5,2062.9,1.21188617]
[1772470689732,0.002,2063.5,2063.0,0.983]
[1772470690227,0.002,2063.5,2063.0,2.19579079]
[1772470690664,0.002,2063.9,2063.1,1.90850168]
[1772470691437,1.21330108,2063.9,2063.1,1.90850168]
[1772470691636,0.002,2063.9,2063.1,1.90850168]
[1772470692164,4.84430584,2064.3,2063.1,1.90850168]
[1772470692165,0.002,2064.4,2063.9,1.90850168]
[1772470692370,1.85536435,2064.8,2063.9,1.90850168]
[1772470692582,1.85536435,2064.8,2064.0,0.985]
[1772470693054,1.85536435,2064.8,2064.1,0.985]
[1772470693568,1.85536435,2064.8,2063.6,1.90850168]
[1772470693735,1.85536435,2064.6,2063.8,0.984]
[1772470694257,3.06630765,2064.6,2063.9,1.21129899]
[1772470695153,1.21082966,2064.7,2063.9,1.21129899]
[1772470695549,1.83490601,2064.9,2063.9,2.19529899]
[1772470695754,0.002,2064.9,2064.1,1.73790226]
[1772470696265,0.002,2064.9,2064.2,1.21112295]
[1772470697168,1.83490601,2064.9,2064.2,1.21112295]
[1772470697378,1.83490601,2064.9,2064.3,0.985]
[1772470697877,1.83490601,2064.9,2064.2,1.21112295]
[1772470698076,1.83490601,2064.9,2064.2,2.19612295]
[1772470698270,3.04566,2064.9,2064.2,2.19612295]
[1772470698570,1.21275399,2064.9,2064.2,2.19612295]
[1772470698866,3.09034871,2064.9,2064.2,1.21112295]
[1772470699243,1.87759472,2064.8,2064.2,1.21112295]
[1772470699577,1.2127175,2064.9,2064.2,2.93739507]
[1772470699738,0.002,2064.9,2064.3,1.72627212]
[1772470700339,0.002,2064.9,2064.4,2.19600561]
[1772470700640,0.002,2064.8,2064.4,2.19600561]
[1772470701039,0.002,2064.8,2064.1,1.21112295]
[1772470701236,1.87959472,2064.8,2064.0,0.986]
[1772470701837,0.002,2064.8,2064.0,2.71227212]
[1772470702139,0.002,2064.8,2064.2,1.72627212]
[1772470702366,0.002,2064.8,2064.3,1.21106428]
[1772470702566,0.002,2064.9,2064.4,0.986]
[1772470703065,0.002,2064.9,2064.4,2.71227212]
[1772470705341,0.002,2066.8,2065.8,4.23800543]
[1772470705840,0.002,2066.8,2065.9,2.71327212]
[1772470706040,1.21161038,2066.8,2065.9,1.72627212]
[1772470706270,1.87759472,2066.5,2065.4,4.84120836]
[1772470706464,1.87759472,2066.5,2065.5,2.19736068]
[1772470706638,1.20971644,2066.6,2065.5,3.9236328]
[1772470708042,1.20971644,2066.6,2065.6,0.988]
[1772470708043,1.87759472,2066.5,2065.6,0.988]
[1772470709243,1.20983352,2066.4,2065.3,4.84144274]
[1772470709443,1.20983352,2066.4,2065.4,0.988]
[1772470709644,1.20983352,2066.4,2065.5,0.988]
[1772470709944,3.08741285,2066.5,2065.5,2.71427212]
[1772470710750,3.08741285,2066.5,2065.5,1.72627212]
[1772470710987,3.08741285,2066.5,2065.6,0.987]
[1772470711282,3.08741285,2066.5,2065.6,4.840974]
[1772470711466,3.08741285,2066.5,2065.7,0.987]
[1772470711856,1.20968922,2066.7,2065.7,2.71327212]
[1772470713452,1.87759472,2066.6,2065.8,1.21018491]
[1772470713680,1.87759472,2066.6,2065.8,2.19718491]
[1772470713886,1.87759472,2066.6,2065.8,0.987]
[1772470714190,1.87759472,2066.2,2065.2,4.84208175]
[1772470714483,1.87759472,2066.2,2065.4,0.987]
[1772470715272,1.87759472,2066.2,2065.2,4.84208175]
[1772470715461,1.87759472,2066.2,2065.3,0.987]
[1772470715462,3.08756493,2066.2,2065.3,0.987]
[1772470715672,3.08756493,2066.2,2065.2,4.84208175]
[1772470715872,3.08756493,2066.2,2065.4,0.987]
[1772470717379,1.87759472,2065.9,2065.2,1.2105365]
[1772470717767,1.87759472,2065.9,2065.1,5.8282388]
[1772470717768,1.87759472,2065.9,2065.0,0.987]
[1772470718086,1.21006776,2066.0,2064.8,0.987]
[1772470718087,1.87759472,2065.7,2064.8,0.987]
[1772470718481,1.87759472,2065.7,2064.8,2.71327212]
[1772470718675,3.08766248,2066.0,2064.9,1.72627212]
[1772470719403,1.87759472,2065.7,2065.0,1.21065375]
[1772470719775,1.87759472,2066.0,2065.0,2.93692587]
[1772470719976,3.08769746,2066.0,2065.0,2.93692587]
[1772470720175,1.2099771,2066.2,2065.2,1.72627212]
[1772470720392,3.08757182,2066.2,2065.3,0.986]
[1772470720696,3.08757182,2066.2,2065.2,1.72627212]
[1772470720697,3.08757182,2066.2,2065.4,0.986]
[1772470721494,1.87759472,2066.1,2065.3,2.19647789]
[1772470722698,1.87759472,2066.1,2065.3,1.21047789]
[1772470723263,0.002,2066.3,2065.4,1.72627212]
[1772470723471,0.002,2066.3,2065.6,1.21030209]
[1772470723668,0.002,2066.3,2065.6,2.19630209]
[1772470724687,0.002,2066.3,2065.6,3.92257421]
[1772470724887,0.002,2066.3,2065.7,1.72627212]
[1772470725703,0.002,2066.3,2065.8,1.21018491]
[1772470727202,0.002,2066.3,2065.8,2.19918491]
[1772470727403,0.002,2066.5,2066.0,1.90591846]
[1772470727579,0.002,2066.8,2066.0,1.90591846]
[1772470727902,0.002,2066.8,2066.2,1.90591846]
[1772470728104,0.002,2066.8,2066.3,0.989]
[1772470728305,0.002,2067.0,2066.4,1.90591846]
[1772470729221,0.002,2067.0,2066.5,0.99]
[1772470729388,0.002,2067.1,2066.6,1.90591846]
[1772470729879,0.002,2067.5,2066.8,1.90591846]
[1772470730078,0.002,2066.9,2066.8,1.90591846]
[1772470730276,0.002,2067.5,2066.8,0.99]
[1772470730610,0.002,2067.5,2066.7,1.2096579]
[1772470730611,1.88713041,2067.5,2066.7,1.2096579]
[1772470731376,4.83829153,2067.8,2067.0,1.90591846]
[1772470731377,0.002,2067.8,2067.0,1.90591846]
[1772470731611,1.21104401,2067.8,2066.8,1.90591846]
[1772470731812,1.88513041,2067.7,2067.0,1.20948234]
[1772470732122,0.002,2067.8,2067.1,1.90591846]
[1772470732623,0.002,2068.0,2067.4,1.90591846]
[1772470732782,0.002,2068.0,2067.5,0.99]
[1772470732978,0.002,2068.3,2067.6,4.46448906]
[1772470733285,0.002,2068.3,2067.7,2.89691846]
[1772470733608,1.88513041,2068.7,2067.3,4.46448906]
[1772470733814,1.88513041,2068.7,2067.4,2.89691846]
[1772470734011,1.88513041,2068.7,2067.0,1.20948234]
[1772470734012,1.88513041,2068.5,2067.2,1.20936532]
[1772470734226,1.88513041,2068.5,2067.4,0.991]
[1772470735007,1.88513041,2068.5,2067.4,2.89691846]
[1772470735524,1.88513041,2068.5,2067.5,1.90591846]
[1772470735681,1.88513041,2068.5,2067.2,3.11528378]
[1772470735885,1.88513041,2068.5,2067.3,0.99]
[1772470736101,1.88513041,2068.3,2067.4,0.99]
[1772470737312,1.88513041,2068.3,2066.8,2.5585706]
[1772470737313,1.88513041,2068.3,2066.8,4.83828223]
[1772470737519,1.88513041,2068.2,2066.9,2.19950006]
[1772470738215,1.88513041,2068.0,2066.9,2.19950006]
[1772470738902,1.88513041,2068.0,2066.7,4.83862154]
[1772470739107,1.88513041,2067.7,2066.8,0.99]
[1772470739302,1.88513041,2067.7,2066.6,1.20967745]
[1772470739485,1.88513041,2067.7,2066.7,0.99]
[1772470740315,1.20913136,2067.6,2066.7,0.99]
[1772470740517,1.88513041,2067.5,2066.5,2.19974991]
[1772470741110,1.88513041,2067.5,2066.6,0.99]
[1772470741318,1.88513041,2067.5,2066.5,1.20974991]
[1772470741509,1.88513041,2067.5,2066.3,4.83951837]
[1772470741695,1.20913136,2067.6,2066.3,4.83951837]
[1772470741696,1.88513041,2067.3,2066.3,0.99]
[1772470741890,1.88513041,2067.3,2066.0,1.90591846]
[1772470742091,1.88513041,2067.2,2065.9,0.99]
[1772470742433,1.88513041,2067.0,2065.9,0.99]
[1772470742588,1.88513041,2066.8,2065.8,0.99]
[1772470742916,1.88513041,2066.8,2066.7,0.001]
[1772470743119,1.88513041,2066.8,2065.6,4.02287677]
[1772470743309,1.88513041,2066.8,2065.6,0.001]
[1772470743620,1.88513041,2066.8,2065.6,1.21129934]
[1772470744020,1.88513041,2066.8,2066.5,0.001]
[1772470744197,1.88513041,2066.8,2065.6,1.21128485]
[1772470744388,1.88513041,2066.5,2065.6,0.001]
[1772470744583,3.09484685,2066.6,2065.6,1.82358002]
[1772470744783,3.09484685,2066.6,2065.7,0.989]
[1772470745187,4.83851798,2066.8,2065.9,1.82258002]
[1772470745388,4.83851798,2066.8,2065.9,3.72849848]
[1772470745389,1.20959938,2066.8,2065.9,3.72849848]
[1772470745827,1.20959938,2066.8,2065.6,0.001]
[1772470745828,1.88513041,2066.7,2065.6,0.001]
[1772470746193,1.88513041,2066.6,2065.6,0.001]
[1772470746600,1.20977498,2066.5,2065.6,1.21130209]
[1772470746819,1.88513041,2066.4,2065.6,0.001]
[1772470748602,3.09502248,2066.3,2065.6,0.001]
[1772470748798,1.88513041,2066.2,2065.6,0.001]
[1772470749198,1.88513041,2066.1,2065.6,0.001]
[1772470749817,2.99713041,2066.1,2065.6,0.001]
[1772470750024,1.88513041,2066.0,2065.6,0.001]
[1772470750237,1.88513041,2064.9,2064.1,0.001]
[1772470750428,1.112,2064.8,2064.1,0.003]
[1772470751124,4.84267062,2065.0,2064.1,0.003]
[1772470751345,1.88513041,2065.4,2064.1,1.90891846]
[1772470751497,1.21047789,2065.3,2064.2,4.71549848]
[1772470752099,1.21045825,2065.4,2064.3,1.90791846]
[1772470752297,1.2103224,2065.6,2064.5,1.82258002]
[1772470752530,1.2103224,2065.6,2064.6,1.90591846]
[1772470752730,1.88513041,2065.9,2064.8,1.82258002]
[1772470752897,1.21005143,2066.1,2065.1,1.82258002]
[1772470753092,6.7249825,2066.2,2065.1,3.72849848]
[1772470753093,3.09512197,2066.2,2065.1,3.72849848]
[1772470753321,3.60165467,2066.4,2065.4,1.82258002]
[1772470753322,1.20987013,2066.4,2065.4,1.82258002]
[1772470753491,1.20987013,2066.4,2065.5,0.987]
[1772470753690,1.88513041,2066.7,2065.5,0.987]
[1772470753691,4.83893191,2066.6,2065.5,0.989]
[1772470754455,1.88513041,2066.5,2065.5,0.002]
[1772470755034,1.73305477,2066.3,2065.5,0.002]
[1772470755627,1.82258002,2066.2,2064.8,0.986]
[1772470755838,1.73305477,2066.1,2064.8,0.986]
[1772470756036,1.73305477,2066.1,2064.6,1.21084378]
[1772470756207,1.73305477,2066.1,2064.3,3.03361082]
[1772470756544,1.73305477,2065.8,2064.4,0.985]
[1772470756742,1.73305477,2065.6,2064.4,0.985]
[1772470756938,1.73305477,2065.4,2064.2,1.21111797]
[1772470757139,1.73305477,2065.4,2064.1,0.001]
[1772470757361,1.8371272,2065.2,2064.1,0.001]
[1772470757559,1.8371272,2065.0,2064.1,0.001]
[1772470758232,1.8371272,2064.9,2064.1,0.001]
[1772470758545,1.112,2065.1,2064.1,0.001]
[1772470758546,1.8371272,2064.6,2064.1,0.001]
[1772470758761,1.8371272,2064.4,2063.9,0.001]
[1772470759053,1.21106428,2064.3,2063.2,0.001]
[1772470759535,2.32306428,2064.3,2063.2,0.001]
[1772470762018,2.32306428,2064.3,2063.2,1.74265122]
[1772470762334,1.2108883,2064.6,2063.4,3.56423124]
[1772470762543,5.95755323,2064.7,2063.2,0.001]
[1772470762544,1.2108685,2064.7,2063.8,1.74165122]
[1772470762710,1.2108685,2064.7,2063.9,0.986]
[1772470763117,4.8428849,2064.9,2064.0,1.21124031]
[1772470763534,1.21059512,2065.1,2064.0,3.03382033]
[1772470763842,1.88811602,2065.7,2064.0,3.03382033]
[1772470763843,0.002,2067.3,2066.3,1.55525374]
[1772470764166,0.002,2067.5,2067.0,1.82258002]
[1772470764391,2.28863701,2067.4,2065.7,3.41564001]
[1772470764678,1.3640409,2066.9,2065.7,0.065536]
[1772470764859,1.37037423,2067.0,2066.0,1.87373763]
[1772470765172,1.20924833,2067.4,2066.1,1.21000919]
[1772470765332,3.49788534,2067.4,2066.2,0.986]
[1772470765528,1.8371272,2067.3,2066.3,0.986]
[1772470765745,1.8371272,2067.3,2066.1,1.21000919]
[1772470765940,2.28863701,2067.2,2066.1,1.21000919]
[1772470766564,4.12576421,2067.2,2066.1,1.21000919]
[1772470767129,1.8371272,2067.0,2066.2,0.986]
[1772470767866,1.8371272,2067.0,2065.7,1.2102435]
[1772470768159,2.28863701,2066.9,2066.1,0.986]
[1772470768560,2.28863701,2066.9,2066.0,1.74165122]
[1772470768857,2.28863701,2066.9,2066.1,0.985]
[1772470769363,2.28863701,2066.9,2066.2,0.985]
[1772470769533,2.28863701,2066.9,2066.3,0.985]
[1772470770236,2.28863701,2066.9,2066.4,0.985]
[1772470770466,2.28863701,2066.9,2066.5,0.985]
[1772470770848,3.49818701,2066.9,2065.8,1.21018491]
[1772470771033,3.49818701,2066.9,2065.9,1.050536]
[1772470771752,3.49818701,2066.9,2066.0,1.21006776]
[1772470771950,3.49818701,2066.9,2066.1,0.985]
[1772470772153,2.28863701,2066.9,2066.1,0.985]
[1772470772360,2.28863701,2066.9,2066.2,0.985]
[1772470772564,3.49817854,2066.9,2066.2,0.985]
[1772470772762,3.49817854,2066.9,2066.0,1.21006776]
[1772470773276,2.28863701,2066.9,2066.1,0.985]
[1772470773434,3.49817984,2066.9,2066.1,0.985]
[1772470773635,3.49817984,2066.9,2065.7,4.84096815]
[1772470774149,5.33530704,2066.9,2065.8,0.985]
[1772470774672,5.33530704,2066.9,2065.9,0.985]
[1772470774966,2.28863701,2066.9,2065.9,0.985]
[1772470775136,2.28863701,2066.9,2065.7,6.58261937]
[1772470775342,2.28863701,2066.9,2065.8,0.985]
[1772470775543,2.28863701,2066.9,2065.7,6.58261937]
[1772470775743,3.49818482,2066.9,2065.7,6.58261937]
[1772470775944,3.49818482,2066.9,2065.8,0.986]
[1772470776849,2.28863701,2066.9,2065.8,0.986]
[1772470777058,2.28863701,2066.9,2065.9,0.986]
[1772470777444,2.28863701,2066.9,2065.8,1.74165122]
[1772470777652,2.28863701,2066.9,2065.9,4.84027105]
[1772470777852,2.03600532,2066.9,2066.0,0.986]
[1772470779176,2.03600532,2066.9,2065.9,4.84027105]
[1772470779177,5.08268482,2066.9,2066.1,0.986]
[1772470780091,1.8371272,2066.8,2065.3,1.01603493]
[1772470780289,1.8371272,2066.8,2064.9,1.21065608]
[1772470780290,1.8371272,2066.4,2064.9,1.21065608]
[1772470780579,1.8371272,2066.2,2064.8,6.43845498]
[1772470781866,1.8371272,2066.0,2064.8,6.43845498]
[1772470782070,1.8371272,2065.9,2064.8,6.43845498]
[1772470782374,1.8371272,2065.9,2064.9,0.987]
[1772470783478,1.8371272,2065.9,2064.8,5.45245498]
[1772470783648,2.03600532,2065.8,2065.0,0.987]
[1772470783849,2.03600532,2065.8,2064.8,5.45245498]
[1772470783850,3.87313252,2065.8,2065.1,0.987]
[1772470784348,5.08335403,2065.8,2064.8,4.24172262]
[1772470784565,2.03600532,2065.7,2064.9,2.19771238]
[1772470785680,2.03600532,2065.6,2064.9,2.19771238]
[1772470785884,1.93762095,2066.0,2065.0,0.988]
[1772470786053,2.25155769,2066.0,2065.0,0.989]
[1772470786552,2.25155769,2066.0,2065.1,1.21059512]
[1772470786757,3.4616265,2066.0,2065.1,1.21059512]
[1772470787081,1.52401682,2066.0,2065.1,1.21059512]
[1772470787380,1.52401682,2066.0,2065.0,6.66643882]
[1772470787381,1.93762095,2065.9,2065.0,0.001]
[1772470787579,1.93762095,2065.8,2065.0,0.001]
[1772470787877,1.93762095,2065.8,2065.0,1.2116375]
[1772470788269,0.31393674,2065.7,2065.0,1.2116375]
[1772470788469,3.46182864,2065.7,2065.0,0.001]
[1772470788655,2.25155769,2065.7,2065.1,0.988]
[1772470789056,0.31393674,2065.6,2065.1,0.988]
[1772470790176,1.93762095,2065.5,2065.0,0.001]
[1772470790357,1.93762095,2065.5,2065.0,0.989]
[1772470790559,1.93762095,2065.4,2065.0,0.001]
[1772470791270,1.93762095,2065.2,2065.0,0.001]
[1772470791475,1.93762095,2065.2,2064.8,0.001]
[1772470791786,1.93762095,2065.2,2064.5,1.21194639]
[1772470791952,1.93762095,2065.0,2064.5,2.19994639]
[1772470792154,1.93762095,2065.0,2064.5,0.001]
[1772470792477,1.93762095,2064.9,2064.5,0.001]
[1772470792784,1.93762095,2064.7,2064.5,0.001]
[1772470793161,2.25055769,2064.7,2064.5,0.001]
[1772470794476,1.93762095,2064.6,2063.9,1.2112551]
[1772470794685,3.14856791,2064.5,2063.6,4.84588649]
[1772470794989,3.14856791,2064.5,2063.7,0.988]
[1772470794990,1.93762095,2064.4,2063.7,0.988]
[1772470795289,1.93762095,2064.4,2063.6,4.84588649]
[1772470795592,1.93762095,2064.4,2063.7,0.988]
[1772470795994,1e-08,2064.3,2063.7,2.81105831]
[1772470796175,1.93762095,2064.8,2064.0,1.82305831]
[1772470796584,1.21056466,2065.2,2064.4,1.21100561]
[1772470796790,1.84037216,2065.3,2064.5,0.989]
[1772470797090,1.21046557,2065.4,2064.5,0.989]
[1772470797091,1.21042128,2065.4,2064.5,0.989]
[1772470797290,1.21042128,2065.4,2064.6,0.989]
[1772470797291,1.84037216,2065.4,2064.6,0.989]
[1772470797694,4.84132354,2065.6,2064.7,1.82305831]
[1772470797695,1.21031111,2065.6,2064.7,1.82305831]
[1772470797872,3.05068327,2065.6,2064.4,3.03406392]
[1772470798078,1.84037216,2065.5,2064.4,1.21100561]
[1772470798395,1.84037216,2065.8,2064.7,1.82305831]
[1772470798690,3.05058914,2065.8,2064.8,1.21077101]
[1772470799264,3.05058914,2065.8,2064.9,0.989]
[1772470799798,3.05059272,2065.8,2064.8,1.21077101]
[1772470799969,1.84037216,2065.7,2064.6,1.2108883]
[1772470800164,1.84037216,2065.6,2063.9,1.21129899]
[1772470800364,1.84037216,2065.6,2064.0,0.989]
[1772470800676,3.05073284,2065.5,2064.7,0.001]
[1772470800886,0.002,2065.4,2064.7,0.99]
[1772470801205,0.002,2065.4,2064.7,2.81423819]
[1772470801373,0.002,2065.4,2064.7,0.99]
[1772470801575,0.002,2065.4,2064.8,0.989]
[1772470802276,0.002,2065.6,2064.9,1.82423819]
[1772470802477,0.002,2065.6,2064.8,0.989]
[1772470802478,0.002,2065.9,2065.2,1.82423819]
[1772470802708,0.002,2065.9,2065.4,1.21041928]
[1772470803106,1.84237216,2065.9,2065.3,0.989]
[1772470803475,1.84237216,2065.9,2064.7,0.001]
[1772470803694,1.84237216,2065.9,2064.7,1.2117825]
[1772470803904,1.82423819,2065.6,2064.7,0.001]
[1772470804077,1.20989626,2066.3,2064.7,0.001]
[1772470804288,1.84037216,2066.4,2065.3,1.82423819]
[1772470804482,1.84037216,2066.4,2065.3,0.988]
[1772470804701,1.84037216,2066.2,2064.8,4.84301841]
[1772470804898,1.84037216,2066.2,2065.1,0.988]
[1772470805697,1.84037216,2066.5,2065.1,1.84252508]
[1772470805889,1.84037216,2066.5,2065.2,0.988]
[1772470806086,1.84037216,2066.5,2065.3,0.988]
[1772470806707,1.84037216,2066.5,2065.4,0.988]
[1772470806708,3.05019289,2066.5,2065.4,0.988]
[1772470807203,1.84037216,2066.9,2065.4,2.83052508]
[1772470807403,1.84037216,2066.7,2065.4,1.84252508]
[1772470807804,1.84037216,2066.7,2065.5,0.988]
[1772470808183,1.84037216,2066.7,2065.4,1.84252508]
[1772470808398,1.84037216,2066.7,2065.5,0.987]
[1772470808800,3.05007191,2066.7,2065.6,1.21030209]
[1772470809204,2.32354085,2067.0,2065.6,3.05282717]
[1772470809396,1.20954085,2066.9,2065.6,1.21030209]
[1772470809711,5.95202724,2067.0,2065.6,1.21030209]
[1772470809712,1.21150559,2067.0,2065.7,1.84252508]
[1772470810198,1.21150559,2067.0,2065.8,0.988]
[1772470810398,1.21150559,2067.0,2065.9,1.84252508]
[1772470810399,0.002,2067.0,2065.9,1.84252508]
[1772470810913,1.84237216,2067.0,2066.0,0.988]
[1772470811309,1.84037216,2066.9,2065.8,0.988]
[1772470811485,1.84037216,2066.9,2065.6,4.84050534]
[1772470811688,1.84037216,2066.9,2065.8,0.987]
[1772470811889,1.84037216,2066.9,2065.4,1.21041928]
[1772470812084,1.84037216,2066.9,2065.4,2.19841928]
[1772470812284,1.84037216,2066.9,2065.5,0.988]
[1772470812911,1.84037216,2066.7,2065.2,4.84167715]
[1772470813087,1.84037216,2066.7,2065.3,0.987]
[1772470813288,1.84037216,2066.7,2065.2,4.84167715]
[1772470813596,1.84037216,2066.7,2065.3,0.987]
[1772470814311,1.84037216,2066.7,2065.2,4.84167715]
[1772470814513,1.84037216,2066.7,2065.2,5.82867715]
[1772470815098,1.84037216,2066.5,2065.5,0.001]
[1772470815717,1.84037216,2066.5,2064.9,6.68475109]
[1772470815718,1.81211914,2066.3,2064.5,0.001]
[1772470815917,1.81211914,2066.3,2065.3,0.001]
[1772470816118,1.81211914,2066.1,2065.3,0.001]
[1772470817319,1.82384704,2065.9,2065.3,0.001]
[1772470817523,1.82384704,2065.7,2065.3,0.001]
[1772470818517,1.82384704,2065.7,2064.7,0.001]
[1772470819393,1.82384704,2065.5,2064.7,0.001]
[1772470819589,1.82384704,2065.5,2064.5,0.001]
[1772470820718,1.82384704,2065.3,2064.2,0.001]
[1772470820907,1.82384704,2065.1,2064.2,0.001]
[1772470821113,1.82384704,2064.9,2064.2,0.001]
[1772470821507,1.82384704,2064.7,2064.2,0.001]
[1772470821713,1.82384704,2064.5,2064.2,0.001]
[1772470822104,1.82384704,2064.5,2063.4,0.001]
[1772470822506,1.21077101,2064.8,2063.5,1.87156654]
[1772470822821,3.03456822,2064.9,2063.7,1.87156654]
[1772470823506,3.03456822,2064.9,2063.8,1.21135768]
[1772470823711,1.82384704,2064.8,2063.7,1.21137669]
[1772470824615,1.82384704,2064.8,2063.7,3.08294323]
[1772470824813,1.21072118,2064.9,2063.8,1.87156654]
[1772470825037,3.03456822,2064.9,2063.7,1.21137669]
[1772470825347,1.82384704,2064.8,2063.5,4.84600843]
[1772470825715,3.0346767,2064.7,2063.5,4.84600843]
[1772470825952,1.82384704,2064.6,2063.5,4.84600843]
[1772470826440,2.32182966,2064.7,2063.5,1.87156654]
[1772470826736,1.82384704,2064.6,2063.4,2.19854837]
[1772470826941,1.82384704,2064.6,2063.4,4.07011491]
[1772470827837,1.21094696,2064.5,2063.6,1.21147509]
[1772470828006,4.84287477,2064.9,2063.9,2.55561158]
[1772470828212,1.21071238,2064.9,2063.9,2.55561158]
[1772470828411,2.93584704,2065.0,2063.9,2.55561158]
[1772470828642,1.112,2065.0,2063.9,4.42717812]
[1772470828841,2.32267313,2065.0,2063.9,4.42717812]
[1772470829235,2.32267313,2065.0,2064.0,0.987]
[1772470829925,4.84391376,2065.3,2064.2,4.42717812]
[1772470829926,0.002,2065.3,2064.2,4.42717812]
[1772470830246,0.002,2065.3,2064.1,2.93305455]
[1772470830247,0.002,2065.3,2064.5,4.42717812]
[1772470830542,0.002,2065.3,2064.6,0.986]
[1772470831041,0.002,2065.3,2064.7,2.55561158]
[1772470831243,0.002,2065.3,2064.5,1.87156654]
[1772470831751,0.002,2065.8,2065.0,2.55561158]
[1772470831950,1.82384704,2066.3,2065.1,3.08216166]